bitfinex-derivatives/quotes_ETHF0:USTF0_20250824
["timestamp","ask_amount","ask_price","bid_price","bid_amount"]
[1756069299687,3.466,4777.6,4776.3,1.0865]
[1756069299887,3.2078,4776.9,4776.3,1.0865]
[1756069300684,3.2078,4776.4,4775.6,3.2078]
[1756069300890,3.2078,4776.4,4775.7,1.0865]
[1756069301083,2.3782,4775.6,4774.2,4.31590488]
[1756069301281,3.2078,4775.3,4774.3,1.0865]
[1756069301589,3.2078,4775.3,4774.4,1.30035145]
[1756069301790,3.2078,4775.3,4774.5,0.28905145]
[1756069301984,3.466,4774.7,4774.6,0.28905145]
[1756069302185,1.0878,4774.4,4772.4,1.0865]
[1756069302384,3.2078,4773.5,4772.5,1.0113]
[1756069302785,3.2078,4773.5,4772.7,2.3745]
[1756069303182,3.2078,4774.0,4772.9,2.3745]
[1756069303381,3.2078,4774.5,4773.6,3.461]
[1756069303585,3.2078,4774.5,4773.9,2.3745]
[1756069303786,0.20569692,4779.1,4772.9,1.10810488]
[1756069303787,3.2078,4775.2,4774.6,3.461]
[1756069303991,3.2078,4775.2,4774.5,2.0978]
[1756069304188,2.4542,4775.5,4773.8,2.19460488]
[1756069304491,2.3782,4774.0,4771.7,1.10810488]
[1756069304785,0.10757691,4777.0,4771.9,3.2078]
[1756069304786,4.2956,4773.1,4771.9,3.2078]
[1756069304989,3.2078,4773.1,4772.0,1.0113]
[1756069305181,3.2078,4772.6,4772.0,1.0113]
[1756069305689,3.2078,4772.1,4771.4,4.2191]
[1756069305890,3.466,4772.0,4770.6,1.0113]
[1756069306196,2.0996,4770.9,4769.7,3.2078]
[1756069306487,3.2078,4770.0,4769.0,1.3632]
[1756069306888,1.0878,4769.9,4769.0,1.3632]
[1756069307282,3.2078,4769.4,4769.0,1.3632]
[1756069307488,4.5742,4770.0,4769.0,1.0113]
[1756069307694,3.2078,4769.4,4768.1,3.2078]
[1756069307895,1.0878,4769.3,4768.1,3.2078]
[1756069308081,1.0878,4769.3,4768.2,1.0113]
[1756069308286,1.0878,4769.3,4766.2,1.10810488]
[1756069308287,3.2078,4765.5,4765.3,1.10445428]
[1756069308487,1.9616,4765.4,4764.1,0.09655447]
[1756069308687,4.0816,4764.2,4764.1,0.09655447]
[1756069308894,3.2078,4764.2,4764.1,3.27023574]
[1756069309090,3.2078,4764.2,4764.1,0.82053574]
[1756069309387,3.2078,4764.9,4764.2,1.0113]
[1756069310382,3.2078,4764.3,4762.3,1.0113]
[1756069310588,3.2078,4763.3,4762.3,1.0113]
[1756069310789,3.2078,4764.7,4763.3,1.0113]
[1756069311089,3.2078,4764.7,4764.1,1.0113]
[1756069311295,3.2078,4764.5,4764.1,1.0113]
[1756069311588,3.2078,4766.8,4764.9,2.4497]
[1756069311793,3.2078,4766.8,4765.5,6.6688]
[1756069312088,3.2078,4766.3,4765.7,2.0978]
[1756069312286,3.2078,4765.8,4765.0,1.0865]
[1756069312484,0.8738,4765.1,4764.3,1.0865]
[1756069312686,3.2078,4764.6,4764.4,1.0113]
[1756069312885,3.2078,4764.6,4763.3,3.2078]
[1756069312886,3.2078,4764.6,4764.5,3.461]
[1756069313092,3.2078,4765.6,4764.6,3.461]
[1756069313289,3.2078,4765.6,4764.8,1.3632]
[1756069313497,3.2078,4765.0,4763.9,1.0113]
[1756069313694,0.8738,4764.2,4763.7,1.3632]
[1756069313887,1.0878,4764.3,4763.8,1.3632]
[1756069314096,3.2078,4764.4,4763.9,2.3745]
[1756069314290,3.2078,4764.4,4763.9,1.0113]
[1756069314492,3.2078,4765.0,4764.1,1.3632]
[1756069314686,3.2078,4765.8,4764.6,1.3632]
[1756069315000,3.2078,4765.8,4765.1,1.3632]
[1756069315194,3.2078,4765.8,4765.3,1.3632]
[1756069315393,3.2078,4765.8,4765.4,2.4497]
[1756069315596,3.2078,4765.8,4765.1,3.461]
[1756069315794,6.7693,4767.6,4765.1,3.461]
[1756069315795,3.2078,4766.3,4765.6,3.2078]
[1756069315994,1.0878,4767.4,4765.1,4.0]
[1756069315995,3.2078,4767.2,4766.1,3.2078]
[1756069316200,3.2078,4767.2,4766.2,2.3745]
[1756069316604,6.7693,4767.6,4765.4,1.0113]
[1756069316605,1.0878,4766.3,4765.4,1.0113]
[1756069316793,1.3664,4766.9,4766.0,1.0113]
[1756069316998,3.2078,4766.8,4766.0,1.0113]
[1756069317402,1.0878,4767.0,4766.2,3.2078]
[1756069317600,1.0878,4767.0,4766.3,2.3745]
[1756069318095,1.0878,4767.0,4766.2,3.2078]
[1756069318096,3.2078,4767.3,4766.2,3.2078]
[1756069318304,1.0996,4766.1,4764.6,2.4804]
[1756069318503,3.2078,4765.3,4764.6,2.4804]
[1756069318698,1.0996,4765.4,4764.7,3.2078]
[1756069318900,1.4723,4766.0,4764.6,2.4804]
[1756069318901,1.4723,4766.0,4764.8,1.0462]
[1756069319102,1.4723,4766.0,4765.1,3.2078]
[1756069319296,3.2078,4765.7,4764.9,1.4342]
[1756069319602,3.2078,4765.7,4765.0,3.2078]
[1756069320002,3.2078,4765.7,4764.9,1.4342]
[1756069320199,3.2078,4765.7,4764.9,4.642]
[1756069320406,3.2078,4765.7,4757.7,2.59184434]
[1756069320407,0.8767,4764.9,4764.2,1.4342]
[1756069320705,3.2078,4764.6,4763.8,4.254]
[1756069320894,3.2078,4764.1,4763.1,1.0462]
[1756069321200,0.8767,4763.8,4762.7,3.2078]
[1756069321408,1.0996,4763.5,4762.1,1.0462]
[1756069321598,1.0996,4763.5,4763.2,3.2078]
[1756069321901,1.0996,4763.5,4762.9,3.2078]
[1756069322204,0.8767,4763.6,4762.4,2.4804]
[1756069322400,3.4486,4762.8,4761.8,1.4342]
[1756069322702,3.4486,4762.8,4762.1,3.2078]
[1756069322906,3.2078,4762.4,4761.6,3.2078]
[1756069323100,3.2078,4762.4,4761.2,1.0462]
[1756069323298,3.2078,4762.4,4761.0,3.2078]
[1756069323299,1.0996,4762.1,4760.6,2.4804]
[1756069323507,1.0996,4761.0,4760.6,1.4342]
[1756069323695,1.0996,4761.8,4760.8,1.0462]
[1756069323898,1.0996,4761.8,4761.5,1.4342]
[1756069324110,2.349,4761.6,4760.6,1.0462]
[1756069324302,1.9763,4761.1,4760.2,0.03655948]
[1756069324610,3.2078,4760.8,4760.2,2.4804]
[1756069324806,3.2078,4761.5,4760.1,0.5707]
[1756069325003,3.2078,4761.5,4760.5,2.4804]
[1756069325411,3.2078,4760.8,4760.0,0.03656032]
[1756069325609,3.4486,4760.0,4759.1,1.4342]
[1756069325799,3.2078,4760.1,4759.8,1.4342]
[1756069326003,1.0996,4760.6,4759.9,1.4342]
[1756069326402,1.0996,4760.7,4760.0,3.2078]
[1756069326598,1.4723,4761.5,4760.5,3.2078]
[1756069326803,0.10554341,4762.3,4761.5,2.4804]
[1756069326999,1.0996,4762.8,4761.7,1.0462]
[1756069327202,0.8767,4762.7,4761.2,3.2078]
[1756069327414,1.4723,4761.7,4760.1,1.4342]
[1756069327703,1.0996,4760.5,4759.0,0.5707]
[1756069327903,1.0996,4761.3,4760.0,3.2078]
[1756069328109,1.0996,4762.0,4761.0,1.0462]
[1756069328499,1.0996,4762.7,4761.7,1.0462]
[1756069329307,3.2078,4763.4,4762.6,1.0462]
[1756069329507,6.2213,4763.5,4763.4,2.4804]
[1756069329701,1.0996,4763.4,4763.3,3.2078]
[1756069329901,1.0996,4763.4,4762.7,1.4342]
[1756069330407,6.2213,4763.5,4762.8,1.4342]
[1756069330605,6.2213,4763.5,4762.8,2.4804]
[1756069330805,6.0523,4763.9,4762.9,1.4342]
[1756069331110,1.0996,4764.4,4763.0,2.4804]
[1756069331306,1.0996,4764.4,4763.4,3.2078]
[1756069331509,1.0996,4765.1,4764.0,2.4804]
[1756069331804,3.2078,4766.6,4765.3,2.4804]
[1756069332117,8.7119,4767.6,4766.6,2.4804]
[1756069332312,1.0996,4767.5,4766.7,3.2078]
[1756069332609,8.7119,4767.6,4766.1,1.4342]
[1756069332806,1.0996,4768.9,4767.5,6.2589]
[1756069333107,1.4723,4769.2,4767.5,6.2589]
[1756069333108,1.0996,4769.2,4768.4,3.2078]
[1756069333312,28.8845,4769.3,4769.1,3.2078]
[1756069333616,14.3974632,4769.3,4769.2,59.557]
[1756069333906,11.5044632,4769.3,4769.2,58.34392635]
[1756069334112,8.6888832,4769.3,4769.2,65.55172635]
[1756069334306,1.0996,4771.7,4769.2,62.7648]
[1756069334609,3.2078,4772.4,4770.1,3.2078]
[1756069334905,3.2078,4772.4,4769.3,25.32]
[1756069334906,1.0996,4771.8,4770.4,3.2078]
[1756069335107,0.8673,4772.3,4771.7,3.2078]
[1756069335309,0.09,4772.2,4771.8,3.2078]
[1756069335500,1.1896,4772.2,4771.3,3.2078]
[1756069335705,1.1896,4772.2,4771.8,5.87992657]
[1756069335706,0.09,4772.2,4771.8,5.87992657]
[1756069335910,0.9576,4772.0,4771.4,2.67212657]
[1756069336208,0.09,4772.2,4771.7,3.2078]
[1756069336414,1.0996,4772.0,4771.7,3.2078]
[1756069336708,1.0996,4771.8,4771.5,3.2078]
[1756069336909,0.09,4771.9,4771.0,30.232]
[1756069337110,2.0572,4771.7,4770.7,3.2078]
[1756069337301,2.0572,4771.7,4745.8,8.848]
[1756069337302,3.2978,4771.6,4770.4,3.2078]
[1756069337502,2.5719,4771.3,4770.4,3.2078]
[1756069337707,0.09,4771.6,4770.9,3.2078]
[1756069337901,0.09,4771.6,4770.5,2.69107899]
[1756069337902,0.09,4771.6,4771.5,3.2078]
[1756069338107,0.09,4772.7,4771.5,58.7988]
[1756069338407,2.6619,4772.7,4771.9,3.2078]
[1756069338609,2.6619,4772.7,4771.5,32.9002427]
[1756069338610,1.4723,4772.5,4771.5,3.2078]
[1756069338908,1.4723,4772.5,4766.1,2.59184434]
[1756069338909,1.0996,4771.9,4770.6,3.2078]
[1756069339115,2.0572,4771.7,4770.6,3.2078]
[1756069339412,0.09,4771.6,4770.6,3.2078]
[1756069339610,1.0996,4771.3,4769.9,3.06]
[1756069339812,3.5295,4770.7,4768.7,3.2078]
[1756069340108,1.0996,4770.2,4769.6,3.2078]
[1756069340300,1.0996,4771.1,4770.1,3.2078]
[1756069340500,1.5623,4771.6,4770.6,3.2078]
[1756069340809,1.5623,4771.6,4771.2,3.2078]
[1756069340810,0.09,4771.6,4771.2,3.2078]
[1756069341309,0.09,4772.1,4771.3,32.00289219]
[1756069341502,0.09,4772.1,4772.0,3.2078]
[1756069341701,1.5623,4773.5,4771.9,30.206]
[1756069342011,2.5719,4772.5,4771.3,3.2078]
[1756069342203,0.09,4772.4,4771.9,3.2078]
[1756069342710,0.09,4772.8,4772.2,3.2078]
[1756069342917,0.09,4772.3,4771.6,3.2078]
[1756069343112,1.1896,4772.3,4771.6,3.2078]
[1756069343409,1.1896,4772.3,4770.9,2.71683194]
[1756069343410,1.0996,4772.1,4770.9,2.71683194]
[1756069343715,2.0572,4771.8,4770.8,25.323]
[1756069343903,2.0572,4771.8,4770.0,3.2078]
[1756069343904,0.9576,4771.5,4770.0,3.2078]
[1756069344109,1.0996,4771.4,4770.6,3.2078]
[1756069344403,1.0996,4771.4,4770.5,3.2078]
[1756069345009,1.0996,4771.4,4768.1,0.11054086]
[1756069345010,1.0996,4770.8,4770.0,3.2078]
[1756069345211,1.4723,4770.7,4769.4,25.241]
[1756069345407,2.4299,4770.7,4769.4,25.241]
[1756069345606,2.4299,4770.7,4768.8,3.2078]
[1756069345607,3.5295,4770.0,4768.8,3.2078]
[1756069345910,1.0996,4769.5,4768.2,3.2078]
[1756069346110,3.5295,4769.6,4768.2,3.2078]
[1756069346311,3.5295,4769.1,4768.2,3.2078]
[1756069346513,2.4299,4768.9,4767.7,3.2078]
[1756069346716,1.0996,4768.8,4767.7,3.2078]
[1756069346913,1.0996,4768.3,4767.0,30.195]
[1756069347109,3.2078,4768.0,4767.0,30.195]
[1756069347319,3.5295,4767.9,4767.0,30.195]
[1756069347518,1.0996,4767.8,4767.0,30.195]
[1756069348016,1.1346,4767.6,4767.0,30.195]
[1756069348319,3.6603,4767.4,4766.2,25.123]
[1756069348518,3.6603,4767.4,4766.4,3.2078]
[1756069348724,1.1346,4768.1,4767.3,3.2078]
[1756069349218,3.2078,4768.5,4767.3,3.2078]
[1756069349616,3.2078,4769.7,4768.1,3.2078]
[1756069349816,1.1346,4769.6,4768.7,3.2078]
[1756069350015,1.1346,4769.6,4769.3,3.2078]
[1756069350212,3.2164,4769.9,4769.3,3.3435]
[1756069350418,3.2164,4769.9,4769.8,0.1357]
[1756069350615,3.2164,4769.9,4769.4,2.73946516]
[1756069350816,1.1346,4769.7,4768.9,30.198]
[1756069351017,5.7335,4770.6,4769.2,3.2078]
[1756069351218,1.1346,4770.4,4769.0,2.71180092]
[1756069351418,3.2078,4770.1,4769.1,0.1282]
[1756069351621,1.1346,4770.8,4769.6,3.2078]
[1756069351820,3.2078,4771.3,4770.2,3.2078]
[1756069352015,3.2078,4771.3,4770.3,0.1282]
[1756069352422,3.6603,4771.2,4769.5,0.1282]
[1756069352627,3.2078,4770.8,4769.5,0.1282]
[1756069352829,1.4647,4770.7,4769.5,3.336]
[1756069353028,1.4647,4770.7,4769.5,0.1282]
[1756069353230,1.4647,4770.7,4769.5,3.336]
[1756069353421,1.061,4770.6,4769.5,3.336]
[1756069353617,3.2078,4770.3,4769.5,3.336]
[1756069353821,1.4647,4770.7,4769.5,3.336]
[1756069353822,3.2078,4771.4,4769.5,0.1282]
[1756069354017,0.09,4772.3,4771.0,0.1282]
[1756069354018,2.6893,4772.3,4771.0,0.1282]
[1756069354227,2.6893,4772.3,4771.1,25.077]
[1756069354521,0.09,4772.3,4771.9,3.2078]
[1756069354721,0.09,4772.2,4771.9,3.2078]
[1756069354919,1.4647,4773.1,4772.1,0.1282]
[1756069356024,1.1346,4773.2,4772.1,0.1282]
[1756069356423,1.061,4773.1,4771.9,3.2078]
[1756069356619,3.2078,4772.8,4771.4,3.2078]
[1756069356920,1.4647,4772.6,4771.5,24.979]
[1756069357126,5.8071,4773.4,4771.9,3.2078]
[1756069357325,4.3424,4773.4,4772.4,3.2078]
[1756069357525,4.3424,4773.4,4772.5,0.1282]
[1756069358025,1.4647,4773.3,4771.8,3.2078]
[1756069358329,4.3424,4772.8,4771.9,24.942]
[1756069358529,3.6603,4772.7,4771.9,24.942]
[1756069359228,0.09,4772.6,4771.8,3.2078]
[1756069359729,0.09,4772.6,4771.9,0.1282]
[1756069360231,0.09,4772.6,4772.0,2.75634731]
[1756069360424,3.2078,4772.8,4771.8,3.2078]
[1756069360730,3.2078,4772.1,4771.1,0.1282]
[1756069361029,3.6603,4771.9,4770.6,30.198]
[1756069361327,3.6603,4771.9,4770.7,24.834]
[1756069361524,0.09,4771.8,4771.5,0.1282]
[1756069361724,0.09,4771.7,4771.5,0.1282]
[1756069361925,1.1346,4772.6,4771.5,0.1282]
[1756069362125,1.1346,4772.6,4770.7,24.834]
[1756069362126,1.1346,4772.6,4772.1,3.2078]
[1756069362325,3.2078,4773.2,4772.3,0.0382]
[1756069363026,3.2078,4773.2,4772.4,2.72676321]
[1756069363427,1.1346,4773.3,4772.6,3.2078]
[1756069363627,1.1346,4774.0,4773.2,3.2078]
[1756069363934,1.1346,4774.7,4773.8,0.0382]
[1756069364232,1.1346,4774.7,4773.9,24.739]
[1756069364423,1.4647,4774.4,4773.1,3.2078]
[1756069364628,1.4647,4773.1,4771.9,3.2078]
[1756069364830,1.1346,4772.5,4771.8,24.725]
[1756069366431,2.1956,4773.2,4771.8,27.9328]
[1756069366731,2.1956,4773.2,4772.4,0.0382]
[1756069366732,1.1346,4773.2,4772.4,0.0382]
[1756069367231,1.1346,4773.0,4771.7,3.2078]
[1756069367439,1.061,4771.8,4771.1,30.184]
[1756069367732,2.5257,4771.4,4770.5,24.624]
[1756069367931,2.5257,4771.4,4770.5,27.8318]
[1756069367932,1.1346,4771.3,4770.5,27.8318]
[1756069368133,1.1346,4771.3,4770.5,24.624]
[1756069368322,1.1346,4771.3,4770.0,3.246]
[1756069368523,1.1346,4771.3,4770.5,3.2078]
[1756069368728,3.2078,4770.8,4770.1,2.67688379]
[1756069368932,3.6603,4770.2,4768.9,0.0382]
[1756069369136,3.6603,4770.2,4769.0,24.641]
[1756069369525,2.5993,4770.9,4769.5,0.0382]
[1756069370226,3.6603,4770.5,4769.4,1.0459]
[1756069370529,2.5993,4770.1,4769.5,24.597]
[1756069370832,5.8071,4770.1,4769.5,24.597]
[1756069371534,5.8071,4770.1,4768.9,1.0459]
[1756069371730,5.8071,4770.1,4769.0,24.536]
[1756069371934,5.8071,4770.1,4769.1,1.078]
[1756069372135,1.061,4770.0,4769.2,24.523]
[1756069372737,1.061,4770.0,4769.1,3.2078]
[1756069373034,1.061,4770.0,4769.2,24.487]
[1756069373331,3.2078,4770.1,4769.5,2.1239]
[1756069373628,2.5993,4770.8,4769.5,2.1239]
[1756069373629,4.2688,4770.7,4769.5,2.1239]
[1756069374030,3.2078,4770.7,4769.7,1.0459]
[1756069374436,2.5993,4770.8,4769.7,1.0459]
[1756069374633,2.5993,4770.8,4769.6,0.0382]
[1756069374826,2.5993,4770.6,4769.6,24.437]
[1756069376030,1.061,4770.2,4770.1,0.00857837]
[1756069376236,6.8681,4770.2,4770.1,0.00857837]
[1756069379032,6.8681,4770.2,4768.8,3.27202834]
[1756069379237,3.6216,4769.8,4768.8,24.31622834]
[1756069379436,3.2078,4769.4,4768.8,24.252]
[1756069380133,3.2078,4769.4,4768.8,24.31803269]
[1756069380539,2.609,4769.7,4769.0,3.2078]
[1756069380834,0.20449301,4771.3,4768.9,1.0188]
[1756069380835,3.2078,4770.4,4769.5,3.2078]
[1756069381035,3.2078,4770.4,4769.7,1.0188]
[1756069381236,2.609,4770.3,4769.6,24.199]
[1756069381434,3.2078,4771.6,4770.3,0.0091]
[1756069381633,3.2078,4770.6,4769.7,2.77887086]
[1756069381942,3.2078,4770.6,4768.9,0.0091]
[1756069381943,3.2078,4769.9,4769.3,24.213]
[1756069382139,1.0971,4769.3,4768.1,0.0091]
[1756069382335,3.2078,4768.9,4768.5,0.06491579]
[1756069382637,5.8168,4768.6,4768.5,1.08371579]
[1756069382831,6.8294,4768.6,4768.5,0.06491579]
[1756069383031,3.2078,4768.6,4768.0,1.0279]
[1756069383237,3.2078,4768.6,4768.5,1.1344]
[1756069383442,3.2078,4768.6,4768.5,6.1623]
[1756069383637,3.2078,4768.6,4768.5,5.0279]
[1756069384035,3.2078,4768.6,4767.5,3.2078]
[1756069384232,1.5119,4768.3,4767.5,3.2078]
[1756069384438,1.5119,4768.3,4767.2,24.185]
[1756069384439,2.5245,4767.8,4767.3,0.06450108]
[1756069384639,2.609,4767.7,4767.2,24.185]
[1756069384839,3.6216,4767.8,4767.2,24.185]
[1756069385040,1.0971,4768.4,4767.4,1.1435]
[1756069385241,1.0971,4768.4,4767.5,1.0188]
[1756069385542,4.3049,4768.4,4767.2,24.24888549]
[1756069385744,1.0971,4767.6,4767.2,24.21488549]
[1756069385939,2.609,4768.2,4767.2,0.06388549]
[1756069386241,3.6216,4767.6,4766.6,55.3498]
[1756069386443,3.6216,4767.6,4766.6,49.91368534]
[1756069386743,2.609,4767.6,4766.7,2.1532]
[1756069387344,2.609,4767.6,4766.7,1.0188]
[1756069387935,3.2078,4767.7,4766.7,1.0188]
[1756069388140,4.7197,4767.7,4766.7,1.0188]
[1756069389043,1.0971,4767.6,4766.7,1.0188]
[1756069389446,1.5119,4767.5,4766.7,1.0188]
[1756069389636,2.609,4766.8,4766.1,24.021]
[1756069390340,2.609,4766.8,4766.1,24.08607152]
[1756069390540,3.2078,4766.9,4765.8,3.2078]
[1756069390850,2.609,4766.3,4765.3,24.054]
[1756069391038,3.2078,4766.1,4765.3,24.054]
[1756069391244,2.609,4765.9,4765.3,24.054]
[1756069391443,2.609,4765.8,4765.2,3.2078]
[1756069393149,2.609,4765.8,4765.1,24.1079354]
[1756069394644,2.609,4765.8,4765.2,1.0188]
[1756069395045,1.0971,4765.8,4765.2,1.0188]
[1756069396046,1.5119,4766.0,4765.2,1.0188]
[1756069396848,1.0971,4766.4,4765.6,1.0188]
[1756069397237,1.5119,4766.6,4766.3,1.0188]
[1756069397445,1.5119,4766.6,4766.5,1.0188]
[1756069397637,4.2204,4767.1,4766.5,1.0188]
[1756069397837,3.2078,4767.1,4766.5,3.89464351]
[1756069398041,2.609,4768.1,4767.0,1.0279]
[1756069398242,2.609,4768.1,4767.2,1.0188]
[1756069398845,3.2078,4768.3,4767.3,1.1435]
[1756069399046,3.2078,4768.3,4767.1,23.843]
[1756069399047,1.5119,4767.9,4767.1,23.843]
[1756069399241,3.6216,4767.5,4767.1,23.843]
[1756069399751,3.6216,4767.3,4767.1,23.843]
[1756069399942,3.6216,4767.2,4767.1,23.843]
[1756069400850,3.2078,4767.6,4766.7,1.0188]
[1756069401247,3.2078,4767.1,4765.9,1.0188]
[1756069401449,1.0126,4766.4,4765.4,1.0188]
[1756069401648,1.0971,4765.4,4764.6,1.0188]
[1756069401854,1.0971,4765.4,4764.7,23.755]
[1756069402153,3.2078,4765.1,4764.4,0.06455155]
[1756069402450,1.0971,4765.0,4764.1,1.11535447]
[1756069402641,1.5119,4764.9,4764.1,1.11535447]
[1756069402952,2.1097,4764.8,4764.1,0.09655447]
[1756069403146,1.5119,4764.7,4764.1,0.09655447]
[1756069403343,3.2078,4765.1,4764.1,0.09655447]
[1756069403755,2.5245,4764.8,4764.1,0.09655447]
[1756069404050,3.2078,4764.4,4764.1,0.09655447]
[1756069404246,4.3049,4764.4,4764.2,1.0188]
[1756069405244,4.3049,4764.4,4764.3,1.0188]
[1756069405751,1.5119,4765.5,4764.4,2.1532]
[1756069406051,1.0971,4765.7,4765.1,3.2078]
[1756069406250,3.2078,4766.2,4765.2,1.0279]
[1756069406450,3.2078,4766.2,4765.2,3.7314238]
[1756069406650,3.2078,4766.2,4765.9,1.0188]
[1756069406851,3.2078,4766.2,4766.0,23.6411]
[1756069407052,3.2078,4766.2,4766.1,1.0279]
[1756069407352,2.609,4766.9,4766.1,8.08391973]
[1756069407549,1.0126,4767.4,4766.1,3.85731973]
[1756069407751,4.2125,4768.1,4766.7,2.1441]
[1756069407949,3.2078,4768.1,4767.1,3.2078]
[1756069408150,2.6712,4768.2,4767.3,0.9808]
[1756069408346,3.2078,4768.6,4767.3,0.9808]
[1756069408753,3.2078,4768.6,4767.4,2.73920158]
[1756069409262,3.2078,4768.1,4767.1,3.2078]
[1756069409552,1.0817,4767.8,4766.8,23.601]
[1756069410156,1.0817,4767.8,4766.8,23.68706912]
[1756069411252,1.5895,4767.7,4766.8,23.68706912]
[1756069411452,5.2942,4767.6,4766.8,23.601]
[1756069411756,1.0817,4767.4,4766.5,23.491]
[1756069412751,2.6712,4768.2,4767.3,0.9808]
[1756069413049,3.2078,4767.8,4766.6,0.9808]
[1756069413256,3.6759,4767.7,4766.7,23.464]
[1756069413456,2.6712,4767.6,4766.7,23.464]
[1756069413955,2.6712,4767.6,4766.8,0.9808]
[1756069414656,5.879,4768.3,4767.3,0.9808]
[1756069414959,5.879,4768.3,4767.4,23.445]
[1756069415256,3.2078,4768.3,4767.6,1.1633]
[1756069415646,3.2078,4768.3,4767.8,0.9808]
[1756069415847,3.2078,4768.3,4767.7,2.72826371]
[1756069416153,3.2078,4769.0,4768.1,0.9808]
[1756069416359,1.0817,4768.9,4768.2,23.402]
[1756069417955,1.5895,4768.8,4768.2,23.402]
[1756069418953,3.2078,4769.0,4768.3,3.76275649]
[1756069420060,3.2078,4769.0,4768.4,0.9808]
[1756069420259,4.2895,4769.0,4768.4,0.9808]
[1756069420655,3.2078,4769.6,4768.6,1.1633]
[1756069420862,4.7973,4770.1,4768.7,0.9808]
[1756069421056,4.7973,4770.1,4768.9,0.9808]
[1756069421259,3.2078,4769.6,4769.0,23.276]
[1756069421450,3.2078,4769.1,4769.0,23.276]
[1756069421657,5.879,4769.1,4769.0,23.276]
[1756069421964,6.8837,4769.1,4769.0,23.276]
[1756069422856,4.2895,4769.1,4769.0,23.276]
[1756069423060,3.2078,4769.1,4769.0,24.2568]
[1756069423364,6.8837,4769.1,4769.0,23.276]
[1756069424662,5.879,4769.1,4769.0,23.276]
[1756069426765,3.2078,4769.6,4769.0,24.4393]
[1756069427062,3.2078,4769.6,4769.0,25.4201]
[1756069427475,3.2078,4769.6,4769.3,0.9808]
[1756069427667,4.2895,4769.6,4769.2,1.1633]
[1756069427967,3.2078,4769.6,4769.2,1.1633]
[1756069428163,3.2078,4769.6,4769.5,0.9808]
[1756069428568,3.2078,4769.6,4769.5,2.1441]
[1756069430070,3.2078,4769.6,4769.5,0.9808]
[1756069430768,3.2078,4769.6,4769.5,2.1441]
[1756069431071,3.2078,4769.6,4769.5,0.9808]
[1756069431464,1.5895,4770.1,4769.5,0.9808]
[1756069433566,3.2078,4770.7,4769.7,0.9808]
[1756069433769,3.2078,4770.7,4769.9,0.9808]
[1756069435067,3.2078,4770.2,4769.8,22.88]
[1756069435267,3.6759,4770.1,4769.8,22.88]
[1756069435472,3.2078,4770.2,4769.9,0.9808]
[1756069435672,3.2078,4770.2,4769.8,22.88]
[1756069435979,3.6759,4770.0,4768.9,1.85064801]
[1756069436171,1.0817,4769.6,4768.8,0.9808]
[1756069436468,22.814,4772.5,4768.7,22.817]
[1756069436469,3.6759,4768.9,4768.7,24.66764801]
[1756069436668,3.6759,4768.8,4768.7,22.817]
[1756069437667,3.2078,4769.0,4768.9,1.0928]
[1756069437875,2.6003,4770.0,4769.0,0.9788]
[1756069438175,2.6003,4770.0,4769.2,1.85064801]
[1756069438363,4.1886,4770.1,4769.3,22.779]
[1756069438364,2.6003,4769.9,4769.3,22.779]
[1756069438565,2.4763,4769.3,4769.2,1.85064801]
[1756069438770,3.5811,4769.3,4768.7,1.85064801]
[1756069438967,3.5811,4768.7,4768.6,4.44249235]
[1756069439169,3.5811,4768.7,4767.9,1.06552993]
[1756069439170,2.6003,4768.6,4768.5,24.62464801]
[1756069439370,3.5811,4768.6,4768.5,24.65162479]
[1756069439571,2.6003,4768.6,4768.5,22.774]
[1756069439777,2.6003,4768.6,4768.5,23.7528]
[1756069440271,1.4955,4768.6,4768.5,23.7528]
[1756069440473,1.1048,4769.8,4768.6,2.0716]
[1756069440674,3.2078,4770.5,4769.5,2.0716]
[1756069440880,3.2078,4770.5,4770.2,1.87756886]
[1756069441172,3.2078,4770.5,4770.4,1.525]
[1756069441378,3.2078,4770.5,4770.4,0.4322]
[1756069441577,2.6003,4770.5,4770.4,0.4322]
[1756069441973,3.5811,4770.4,4770.3,22.742]
[1756069442374,3.5811,4770.3,4769.7,1.87756886]
[1756069442578,3.2078,4770.0,4769.3,22.715]
[1756069442783,3.5811,4769.5,4769.3,22.715]
[1756069442986,3.2078,4769.5,4769.3,22.715]
[1756069443188,3.5811,4769.4,4769.3,22.715]
[1756069443894,3.2078,4769.5,4769.4,1.525]
[1756069444286,2.4763,4770.0,4769.4,1.525]
[1756069444490,3.2078,4770.5,4769.8,3.2078]
[1756069444688,2.4763,4770.3,4770.2,1.88006875]
[1756069444991,3.5811,4770.3,4770.2,1.88006875]
[1756069445192,3.5811,4770.3,4769.9,22.671]
[1756069445386,3.5811,4770.4,4770.0,1.88037238]
[1756069445584,3.2078,4770.5,4769.9,22.671]
[1756069445889,6.7889,4770.0,4769.9,22.671]
[1756069446385,2.6003,4769.9,4769.4,22.634]
[1756069446582,3.5811,4769.7,4769.4,22.634]
[1756069446783,1.1048,4769.6,4769.4,22.634]
[1756069446989,2.6003,4769.5,4769.4,22.634]
[1756069447284,1.1048,4769.5,4769.0,2.59184434]
[1756069447487,2.6003,4770.0,4769.2,2.59184434]